fUST/lending_fUST_20240915
["ID","MTS","AMOUNT","RATE_DAILY","PERIOD"]
[338208346,1726386643810,-1520.95525054,0.00034724,2]
[338208348,1726386643820,-903.83910724,0.00034724,2]
[338208350,1726386643833,-4048.45277219,0.00034724,2]
[338208352,1726386643844,-100389.25577053,0.00034724,30]
[338208354,1726386643855,-30388.32656511,0.00034724,30]
[338208356,1726386643866,-308.38,0.00034724,120]
[338208359,1726386643878,-2000.0,0.00034724,30]
[338208361,1726386643890,-2000.0,0.00034724,30]
[338208363,1726386643901,-2000.0,0.00034724,30]
[338208365,1726386643911,-2000.0,0.00034724,30]
[338208367,1726386643924,-11284.0,0.00034724,120]
[338208369,1726386643933,-792.61765744,0.00034724,2]
[338208371,1726386643943,-99236.0,0.00034724,30]
[338208374,1726386643954,-3000.0,0.00034724,40]
[338208376,1726386643964,-500.0,0.00034756,2]
[338208378,1726386643974,-361.90802199,0.00034765,7]
[338208380,1726386643985,-329.91413388,0.00034765,7]
[338208382,1726386643995,-500.0,0.00034773,5]
[338208384,1726386644005,-1000.0,0.000348,3]
[338208386,1726386644017,-1000.0,0.000348,3]
[338208388,1726386644027,-254.31735678,0.00034845,2]
[338208390,1726386644038,-200.0,0.00035,2]
[338208392,1726386644048,-5000.0,0.00035,7]
[338208394,1726386644059,-400.0,0.00035,2]
[338208396,1726386644069,-200.0,0.00035,5]
[338208398,1726386644081,-2220.52624676,0.00035,30]
[338208502,1726386645122,-191.36406557,0.00024657,2]
[338208504,1726386645132,-112.59641213,0.00024657,2]
[338208506,1726386645143,-745.71205443,0.00024657,2]
[338208508,1726386645154,-1978.76249505,0.00032509,2]
[338208510,1726386645164,-7789.46739931,0.00035,30]
[338208513,1726386645174,-321.39226243,0.00035,30]
[338208515,1726386645184,-361.90802199,0.00035174,7]
[338208517,1726386645194,-329.91413388,0.00035174,7]
[338208519,1726386645204,-12872.32,0.00035342,19]
[338208521,1726386645213,-361.90802199,0.00035583,7]
[338208523,1726386645223,-329.91413388,0.00035583,7]
[338208525,1726386645233,-500.0,0.00035616,7]
[338208527,1726386645242,-500.0,0.00035616,7]
[338208529,1726386645252,-500.0,0.00035616,7]
[338208531,1726386645263,-500.0,0.00035616,7]
[338208533,1726386645272,-500.0,0.00035616,7]
[338208535,1726386645281,-500.0,0.00035616,7]
[338208537,1726386645293,-500.0,0.00035616,7]
[338208539,1726386645303,-500.0,0.00035616,7]
[338208541,1726386645313,-500.0,0.00035616,7]
[338208543,1726386645323,-500.0,0.00035616,7]
[338208545,1726386645333,-500.0,0.00035616,7]
[338208547,1726386645342,-500.0,0.00035616,7]
[338208549,1726386645352,-198.02971215,0.00035616,7]
[338208550,1726386645363,-500.0,0.00035616,7]
[338208552,1726386645381,-500.0,0.00035616,7]
[338208554,1726386645392,-500.0,0.00035616,7]
[338208556,1726386645402,-500.0,0.00035616,7]
[338208558,1726386645411,-500.0,0.00035616,7]
[338208560,1726386645422,-500.0,0.00035616,7]
[338208562,1726386645432,-500.0,0.00035616,7]
[338208564,1726386645442,-500.0,0.00035616,7]
[338208566,1726386645451,-500.0,0.00035616,7]
[338208568,1726386645462,-500.0,0.00035616,7]
[338208570,1726386645472,-500.0,0.00035616,7]
[338208572,1726386645483,-500.0,0.00035616,7]
[338208575,1726386645495,-500.0,0.00035616,7]
[338208577,1726386645506,-500.0,0.00035616,7]
[338208579,1726386645515,-500.0,0.00035616,7]
[338208581,1726386645525,-500.0,0.00035616,7]
[338208583,1726386645534,-499.99999999,0.00035616,7]
[338208585,1726386645544,-9108.9590015,0.00035616,30]
[338212567,1726387545522,-524.0,0.00020697,2]
[338212568,1726387545556,-150.0,0.000218,2]
[338212569,1726387545586,-524.0,0.00023697,2]
[338212570,1726387545618,-250.0,0.00023906,2]
[338212571,1726387545653,-300.0,0.0002465,2]
[338212572,1726387545686,-200.0,0.0002465,10]
[338212573,1726387545716,-6072.37310282,0.00024651,2]
[338212574,1726387545750,-3754.67154024,0.00024658,60]
[338212637,1726387838390,-150.0,0.000218,2]
[338212639,1726387838400,-300.0,0.00023918,2]
[338212641,1726387838410,-250.0,0.00023919,2]
[338212643,1726387838420,-1776.49678872,0.00023919,2]
[338212651,1726387838497,-17542.32407523,0.00023919,2]
[338212782,1726387840400,-496.040838,0.00023919,2]
[338212783,1726387840412,-5085.13829805,0.00023919,2]
[338212784,1726387840421,-1001.77315642,0.0002455,2]
[338212785,1726387840434,-500.0,0.0002465,10]
[338212786,1726387840444,-6072.37310282,0.00024651,2]
[338212787,1726387840454,-6245.32845976,0.00024658,60]
[338212788,1726387840463,-259.0,0.00024658,60]
[338212789,1726387840475,-420.0,0.0002594,2]
[338212790,1726387840485,-3677.02043499,0.00026201,2]
[338212791,1726387840495,-660.0,0.00026301,2]
[338212792,1726387840504,-524.0,0.00026697,2]
[338212793,1726387840516,-3677.02043496,0.00026749,2]
[338212794,1726387840526,-500.0,0.00027229,10]
[338212795,1726387840536,-3677.02043496,0.00027297,2]
[338212796,1726387840547,-155.04640255,0.00027297,7]
[338212797,1726387840557,-155.04640255,0.00027297,7]
[338212798,1726387840567,-155.04640255,0.00027297,7]
[338212799,1726387840577,-155.04640255,0.00027297,7]
[338212800,1726387840588,-155.04640255,0.00027297,7]
[338212801,1726387840598,-155.04640255,0.00027297,7]
[338212802,1726387840608,-155.54,0.00027297,7]
[338212803,1726387840617,-217.13996357,0.00027297,7]
[338212804,1726387840627,-217.13996357,0.00027297,7]
[338212805,1726387840637,-217.13996357,0.00027297,7]
[338212806,1726387840647,-217.13996357,0.00027297,7]
[338212807,1726387840659,-217.13996357,0.00027297,7]
[338212808,1726387840669,-217.13996357,0.00027297,7]
[338212809,1726387840678,-217.13996357,0.00027297,7]
[338212810,1726387840688,-217.13996357,0.00027297,7]
[338212811,1726387840697,-217.13996357,0.00027297,7]
[338212812,1726387840707,-217.13996357,0.00027297,7]
[338212813,1726387840717,-217.13996357,0.00027297,7]
[338212814,1726387840728,-217.13996357,0.00027297,7]
[338212815,1726387840738,-217.13996357,0.00027297,7]
[338212816,1726387840748,-217.13996357,0.00027297,7]
[338212817,1726387840759,-217.13996357,0.00027297,7]
[338212818,1726387840768,-217.13996357,0.00027297,7]
[338212819,1726387840777,-217.13996357,0.00027297,7]
[338212820,1726387840789,-217.13996357,0.00027297,7]
[338212821,1726387840799,-217.13996357,0.00027297,7]
[338212822,1726387840809,-164.89071917,0.00027297,7]
[338212823,1726387840822,-164.89071917,0.00027297,7]
[338212824,1726387840834,-164.89071917,0.00027297,7]
[338212825,1726387840846,-164.89071917,0.00027297,7]
[338212826,1726387840857,-164.89071917,0.00027297,7]
[338212827,1726387840868,-165.39,0.00027297,7]
[338212828,1726387840879,-197.943863,0.00027297,7]
[338212829,1726387840890,-197.943863,0.00027297,7]
[338212830,1726387840899,-197.943863,0.00027297,7]
[338212831,1726387840910,-197.943863,0.00027297,7]
[338212832,1726387840919,-197.943863,0.00027297,7]
[338212833,1726387840929,-197.943863,0.00027297,7]
[338212834,1726387840939,-197.943863,0.00027297,7]
[338212835,1726387840949,-197.943863,0.00027297,7]
[338212836,1726387840959,-132.48454939,0.00027297,7]
[338212837,1726387840975,-65.45931361,0.00027297,7]
[338212838,1726387840985,-197.943863,0.00027297,7]
[338212839,1726387840994,-197.943863,0.00027297,7]
[338212840,1726387841004,-197.943863,0.00027297,7]
[338212841,1726387841013,-197.943863,0.00027297,7]
[338212842,1726387841023,-197.943863,0.00027297,7]
[338212843,1726387841033,-197.943863,0.00027297,7]
[338212844,1726387841043,-197.943863,0.00027297,7]
[338212845,1726387841054,-197.943863,0.00027297,7]
[338212846,1726387841064,-197.943863,0.00027297,7]
[338212847,1726387841075,-197.943863,0.00027297,7]
[338212848,1726387841087,-8661.8407224,0.00027377,4]
[338212849,1726387841098,-12806.15,0.00027377,3]
[338212850,1726387841107,-12992.7610836,0.00027387,4]
[338212851,1726387841116,-500.0,0.00027396,2]
[338212852,1726387841127,-167.28245863,0.00027396,2]
[338212853,1726387841136,-283.54175391,0.00027396,2]
[338212854,1726387841145,-365.46863221,0.00027396,2]
[338212855,1726387841155,-500.0,0.00027396,2]
[338212856,1726387841164,-500.0,0.00027396,2]
[338212857,1726387841174,-500.0,0.00027396,2]
[338212858,1726387841184,-500.0,0.00027396,2]
[338212859,1726387841193,-500.0,0.00027396,2]
[338212860,1726387841202,-160.37686393,0.00027397,5]
[338212874,1726387843329,-3000.0020086,0.00027377,3]
[338212875,1726387843345,-476.80683241,0.00027377,3]
[338212876,1726387843361,-7194.98115899,0.00027377,3]
[338212877,1726387843371,-638.10424135,0.00027397,5]
[338212878,1726387843382,-281.25,0.00027397,2]
[338212879,1726387843393,-500.0,0.00027397,5]
[338212880,1726387843405,-500.0,0.00027397,5]
[338212881,1726387843415,-503.56428653,0.00027397,5]
[338212882,1726387843425,-500.0,0.00027397,5]
[338212884,1726387843438,-501.41696664,0.00027397,5]
[338212886,1726387843449,-500.0,0.00027397,5]
[338212887,1726387843459,-500.0,0.00027397,5]
[338212888,1726387843470,-500.0,0.00027397,5]
[338212889,1726387843480,-500.0,0.00027397,5]
[338212890,1726387843491,-1239.73,0.00027397,2]
[338212891,1726387843501,-1012.04493447,0.00027397,5]
[338212892,1726387843511,-2441.29,0.00027397,5]
[338212893,1726387843520,-500.0,0.00027397,5]
[338212894,1726387843529,-500.0,0.00027397,5]
[338212895,1726387843539,-500.0,0.00027397,5]
[338212896,1726387843549,-518.52633962,0.00027397,5]
[338212897,1726387843558,-500.0,0.00027397,5]
[338212898,1726387843568,-502.59672116,0.00027397,5]
[338212899,1726387843577,-503.77,0.00027397,5]
[338212900,1726387843586,-500.0,0.00027397,5]
[338212901,1726387843595,-1222.81,0.00027397,5]
[338212902,1726387843604,-600.0,0.00027397,3]
[338212903,1726387843615,-500.0,0.00027397,5]
[338212904,1726387843624,-500.0,0.00027397,5]
[338212905,1726387843633,-500.0,0.00027397,5]
[338212906,1726387843643,-500.0,0.00027397,5]
[338212907,1726387843652,-428.29147236,0.00027397,5]
[338212908,1726387843661,-500.0,0.00027397,5]
[338212909,1726387843670,-500.0,0.00027397,5]
[338212910,1726387843680,-500.0,0.00027397,5]
[338212911,1726387843689,-500.0,0.00027397,5]
[338212912,1726387843698,-500.0,0.00027397,5]
[338212913,1726387843708,-892.43,0.00027397,5]
[338212914,1726387843717,-500.0,0.00027397,5]
[338212915,1726387843727,-500.0,0.00027397,5]
[338212916,1726387843738,-500.0,0.00027397,5]
[338212917,1726387843749,-523.13622753,0.00027397,5]
[338212918,1726387843759,-500.0,0.00027397,5]
[338212919,1726387843769,-500.0,0.00027397,5]
[338212920,1726387843778,-452.74389486,0.00027397,5]
[338212921,1726387843788,-500.0,0.00027397,5]
[338212922,1726387843798,-500.0,0.00027397,5]
[338212923,1726387843807,-500.0,0.00027397,5]
[338212924,1726387843817,-500.0,0.00027397,5]
[338212925,1726387843826,-500.0,0.00027397,5]
[338212926,1726387843837,-502.68507948,0.00027397,5]
[338212927,1726387843846,-500.97858093,0.00027397,5]
[338212928,1726387843857,-500.0,0.00027397,5]
[338212929,1726387843866,-1177.39,0.00027397,5]
[338212930,1726387843877,-500.0,0.00027397,5]
[338212931,1726387843887,-1001.58429669,0.00027397,2]
[338212932,1726387843898,-500.0,0.00027397,5]
[338212933,1726387843908,-1675.06,0.00027397,5]
[338212934,1726387843919,-553.89843447,0.00027397,5]
[338212935,1726387843929,-500.0,0.00027397,5]
[338212936,1726387843938,-509.67420445,0.00027397,5]
[338212937,1726387843947,-501.27149116,0.00027397,5]
[338212938,1726387843957,-500.0,0.00027397,5]
[338212939,1726387843968,-502.06110106,0.00027397,5]
[338212940,1726387843979,-500.0,0.00027397,5]
[338212941,1726387843990,-503.65415218,0.00027397,5]
[338212942,1726387844001,-324.22201638,0.00027397,5]
[338212943,1726387844013,-500.0,0.00027397,5]
[338212944,1726387844024,-709.04,0.00027397,5]
[338212945,1726387844034,-500.0,0.00027397,5]
[338212946,1726387844045,-754.41,0.00027397,5]
[338212947,1726387844055,-500.0,0.00027397,5]
[338212948,1726387844066,-225.67163629,0.00027397,5]
[338212949,1726387844083,-274.32836371,0.00027397,5]
[338212950,1726387844095,-22.54600779,0.00027397,5]
[338212952,1726387846574,-95.23338,0.00027397,5]
[338212953,1726387864475,724.18384213,0.00011991,2]
[338212954,1726387864504,4078.11405626,0.00011991,2]
[338212964,1726388510321,2257.95702493,0.00011991,2]
[338212981,1726388968146,-214.124259,0.00013699,2]
[338213013,1726389032418,-5827.16497523,0.00018921,2]
[338213040,1726389038591,-4748.72685439,0.00018921,2]
[338213042,1726389038602,-250.0,0.00019021,2]
[338213044,1726389038613,-3000.0,0.00019021,2]
[338213046,1726389038624,-250.0,0.00019116,2]
[338213048,1726389038633,-250.0,0.00019168,2]
[338213050,1726389038644,-250.0,0.00019221,2]
[338213052,1726389038657,-250.0,0.00019273,2]
[338213054,1726389038667,-250.0,0.00019326,2]
[338213056,1726389038680,-250.0,0.00019378,2]
[338213058,1726389038690,-250.0,0.00019431,2]
[338213061,1726389038701,-250.0,0.00019483,2]
[338213063,1726389038711,-250.0,0.00019535,2]
[338213065,1726389038721,-250.0,0.00019588,2]
[338213067,1726389038731,-250.0,0.0001964,2]
[338213069,1726389038742,-300.0,0.00019682,2]
[338213071,1726389038752,-300.0,0.00019682,2]
[338213073,1726389038763,-10875.77974325,0.00019683,2]
[338213076,1726389038809,-14024.22025675,0.00019683,2]
[338213077,1726389038819,-250.0,0.00019693,2]
[338213078,1726389038829,-250.0,0.00019745,2]
[338213079,1726389038840,-250.0,0.00019798,2]
[338213080,1726389038849,-1617.8925217,0.00019911,2]
[338213081,1726389038860,-2298.13777185,0.0001998,2]
[338213082,1726389038869,-151.53042455,0.0002008,2]
[338213083,1726389038881,-151.53042443,0.00020118,2]
[338213084,1726389038893,-151.53042443,0.00020156,2]
[338213085,1726389038903,-4203.7182515,0.0002018,2]
[338213086,1726389038913,-151.53042443,0.00020194,2]
[338213087,1726389038926,-151.53042443,0.00020231,2]
[338213088,1726389038936,-151.53042443,0.00020269,2]
[338213090,1726389038946,-151.53042443,0.00020307,2]
[338213091,1726389038956,-151.53042443,0.00020345,2]
[338213092,1726389038967,-151.53042443,0.00020383,2]
[338213093,1726389038976,-151.53042443,0.00020421,2]
[338213094,1726389038986,-151.53042443,0.00020458,2]
[338213095,1726389038998,-151.53042443,0.00020496,2]
[338213096,1726389039008,-151.53042443,0.00020534,2]
[338213097,1726389039019,-151.53042443,0.00020572,2]
[338213098,1726389039029,-151.53042443,0.0002061,2]
[338213099,1726389039039,-151.53042443,0.00020648,2]
[338213100,1726389039048,-151.53042443,0.00020685,2]
[338213101,1726389039059,-151.53042443,0.00020723,2]
[338213102,1726389039070,-151.53042443,0.00020761,2]
[338213103,1726389039079,-151.53042443,0.00020799,2]
[338213104,1726389039089,-1831.72302642,0.000209,2]
[338213105,1726389039101,-150.0,0.00021,2]
[338213106,1726389039111,-163.336442,0.00021215,2]
[338213107,1726389039122,-21548.4428326,0.00021265,2]
[338213108,1726389039131,-2298.13777185,0.00021378,2]
[338213109,1726389039141,-420.0,0.00021438,2]
[338213110,1726389039150,-150.0,0.00021538,2]
[338213111,1726389039160,-524.0,0.00021538,2]
[338213112,1726389039170,-420.0,0.0002165,2]
[338213113,1726389039180,-150.0,0.000218,2]
[338213114,1726389039194,-2298.13777185,0.00022775,2]
[338213115,1726389039204,-587.0,0.00023351,2]
[338213116,1726389039214,-242.80461851,0.000238,2]
[338213117,1726389039223,-587.0,0.00023815,2]
[338213118,1726389039233,-2298.13777185,0.00024173,2]
[338213119,1726389039243,-524.0,0.00024538,2]
[338213120,1726389039252,-823.0,0.00025435,2]
[338213121,1726389039263,-2298.13777185,0.0002557,2]
[338213122,1726389039272,-4922.31931898,0.0002574,2]
[338213123,1726389039291,-250.0,0.0001985,2]
[338213124,1726389039301,-1150.05378384,0.0002574,2]
[338213125,1726389039311,-300.0,0.00026196,2]
[338213126,1726389039320,-153.0,0.00026575,2]
[338213127,1726389039330,-153.0,0.00026575,2]
[338213128,1726389039340,-153.0,0.00026578,2]
[338213129,1726389039349,-310.9970354,0.00026578,2]
[338213130,1726389039359,-153.0,0.00026578,2]
[338213131,1726389039369,-10336.45,0.0002693,3]
[338213132,1726389039379,-276.47474864,0.0002696,5]
[338213133,1726389039389,-4554.26460298,0.0002696,4]
[338213141,1726389040475,-250.0,0.00019902,2]
[338213142,1726389040485,-250.0,0.00019955,2]
[338213143,1726389040494,-250.0,0.00020007,2]
[338213144,1726389040504,-250.0,0.0002006,2]
[338213145,1726389040513,-250.0,0.00020112,2]
[338213146,1726389040523,-253.84085307,0.0002696,4]
[338213147,1726389040532,-154.93572196,0.0002696,4]
[338213148,1726389040544,-40482.31945829,0.0002696,4]
[338213157,1726389043456,-9199.60762595,0.0002696,4]
[338213158,1726389043466,-2298.13777185,0.00026968,2]
[338213159,1726389043477,-365.46863221,0.00026979,2]
[338213160,1726389043489,-167.28245863,0.00026979,2]
[338213161,1726389043499,-500.0,0.00026979,2]
[338213162,1726389043511,-500.0,0.00026979,2]
[338213163,1726389043521,-500.0,0.00026979,2]
[338213164,1726389043533,-283.54175391,0.00026979,2]
[338213165,1726389043545,-500.0,0.00026979,2]
[338213166,1726389043556,-500.0,0.00026979,2]
[338213167,1726389043566,-500.0,0.00026979,2]
[338213168,1726389043577,-28848.6327363,0.0002698,4]
[338213169,1726389043587,-21954.23848789,0.0002698,4]
[338213170,1726389043631,-48898.2872366,0.0002698,4]
[338213180,1726389046550,-301.24211674,0.0002697,3]
[338213273,1726390164111,-150.0,0.000218,2]
[338213289,1726390232558,-524.0,0.00022343,2]
[338213290,1726390232568,-183.79302,0.00022699,2]
[338213291,1726390232577,-163.78692,0.00023068,2]
[338213292,1726390232587,-151.18156642,0.0002316,2]
[338213516,1726390240635,-12.60535358,0.0002316,2]
[338213518,1726390240645,-163.78692,0.00023253,2]
[338213520,1726390240656,-3000.0,0.00023289,2]
[338213522,1726390240667,-163.78692,0.00023345,2]
[338213524,1726390240677,-163.78692,0.00023438,2]
[338213526,1726390240687,-163.78692,0.0002353,2]
[338213528,1726390240698,-163.78692,0.00023623,2]
[338213530,1726390240708,-163.78692,0.00023715,2]
[338213532,1726390240718,-300.0,0.00023744,2]
[338213534,1726390240727,-300.0,0.00023744,2]
[338213536,1726390240737,-24900.0,0.00023745,2]
[338213538,1726390240748,-163.78692,0.00023807,2]
[338213540,1726390240758,-183.79302,0.00023894,2]
[338213543,1726390240774,-163.78692,0.000239,2]
[338213545,1726390240785,-163.78692,0.00023992,2]
[338213547,1726390240795,-163.78692,0.00024085,2]
[338213549,1726390240808,-163.78692,0.00024177,2]
[338213551,1726390240817,-163.78692,0.0002427,2]
[338213553,1726390240826,-574.53444298,0.000249,2]
[338213555,1726390240835,-8361.03662823,0.00025,2]
[338213557,1726390240847,-183.79302,0.00025089,2]
[338213559,1726390240857,-524.0,0.00025343,2]
[338213560,1726390240867,-177.1139535,0.00025595,2]
[338213819,1726390243699,-397.42048946,0.00025595,2]
[338213821,1726390243710,-420.0,0.00025756,2]
[338213823,1726390243720,-336.64263509,0.00026,15]
[338213825,1726390243730,-574.53444296,0.00026289,2]
[338213827,1726390243739,-6072.37310282,0.00026709,2]
[338213829,1726390243749,-500.0,0.0002685,10]
[338213831,1726390243759,-500.0,0.0002685,10]
[338213833,1726390243768,-500.0,0.0002685,10]
[338213835,1726390243778,-500.0,0.0002685,10]
[338213837,1726390243788,-519.19428233,0.0002685,10]
[338213839,1726390243797,-500.0,0.0002685,10]
[338213841,1726390243807,-500.0,0.0002685,10]
[338213843,1726390243816,-500.0,0.0002685,10]
[338213845,1726390243826,-500.0,0.0002685,10]
[338213847,1726390243836,-9310.44,0.0002697,3]
[338213849,1726390243845,-3502.18787097,0.0002698,4]
[338213851,1726390243855,-23765.49441297,0.0002698,4]
[338220450,1726391194217,-150.0,0.000219,2]
[338220451,1726391194242,-110.31996025,0.00022,2]
[338220453,1726391343244,-150.0,0.000219,2]
[338220454,1726391343268,-189.68003975,0.00022,2]
[338220455,1726391343291,-524.0,0.00022343,2]
[338220456,1726391343314,-183.79302,0.00023072,2]
[338220457,1726391343338,-250.0,0.00023749,2]
[338220458,1726391343361,-250.0,0.00023814,2]
[338220459,1726391343384,-250.0,0.00023879,2]
[338220460,1726391343406,-163.336442,0.00023934,2]
[338220461,1726391343430,-250.0,0.00023944,2]
[338220462,1726391343452,-250.0,0.00024009,2]
[338220463,1726391343476,-300.0,0.00024057,2]
[338220464,1726391343499,-300.0,0.00024057,2]
[338220465,1726391343522,-24900.0,0.00024058,2]
[338220466,1726391343545,-250.0,0.00024075,2]
[338220467,1726391343569,-250.0,0.0002414,2]
[338220468,1726391343592,-250.0,0.00024205,2]
[338220469,1726391343616,-250.0,0.0002427,2]
[338220470,1726391343640,-250.0,0.00024335,2]
[338220471,1726391343663,-250.0,0.000244,2]
[338220472,1726391343687,-250.0,0.00024465,2]
[338220473,1726391343710,-250.0,0.0002453,2]
[338220474,1726391343733,-250.0,0.00024596,2]
[338220475,1726391343757,-250.0,0.00024661,2]
[338220476,1726391343782,-250.0,0.00024726,2]
[338220477,1726391343806,-250.0,0.00024791,2]
[338220478,1726391343829,-250.0,0.00024856,2]
[338220479,1726391343853,-3000.0,0.00024903,2]
[338220480,1726391343878,-250.0,0.00024921,2]
[338220481,1726391343902,-250.0,0.00024986,2]
[338220482,1726391343924,-451.288,0.00025343,2]
[338220483,1726391343946,-500.0,0.00026027,5]
[338220484,1726391343970,-500.0,0.00026027,5]
[338220485,1726391343994,-500.0,0.00026027,5]
[338220486,1726391344018,-500.0,0.00026027,5]
[338220487,1726391344041,-500.0,0.00026027,5]
[338220488,1726391344065,-500.0,0.00026027,5]
[338220489,1726391344089,-500.0,0.00026027,5]
[338220490,1726391344112,-500.0,0.00026027,5]
[338220491,1726391344136,-160.20833296,0.00026027,5]
[338220492,1726391344164,-420.0,0.00026463,2]
[338220493,1726391344187,-6072.37310282,0.00026709,2]
[338220494,1726391344210,-500.0,0.00026849,10]
[338220495,1726391344236,-500.0,0.00026849,10]
[338220496,1726391344262,-500.0,0.00026849,10]
[338220497,1726391344285,-500.0,0.00026849,10]
[338220498,1726391344306,-500.0,0.00026849,10]
[338220499,1726391344329,-500.0,0.00026849,10]
[338220500,1726391344352,-500.0,0.00026849,10]
[338220501,1726391344376,-500.0,0.00026849,10]
[338220502,1726391344400,-519.19428233,0.00026849,10]
[338220503,1726391344424,-16088.44,0.0002696,3]
[338220504,1726391344457,-13407.03,0.0002696,3]
[338220505,1726391344489,-11172.53,0.0002696,3]
[338220506,1726391344520,-276.47474864,0.0002697,5]
[338220507,1726391344556,-6615.60515354,0.0002697,4]
[338220508,1726391344592,-42858.7624009,0.0002697,4]
[338220509,1726391344626,-151.0,0.0002698,7]
[338220510,1726391344656,-6615.60515354,0.0002698,4]
[338220511,1726391344689,-42858.7624009,0.0002698,4]
[338220512,1726391344716,-255.82804254,0.00026989,2]
[338220513,1726391344746,-500.0,0.00026989,2]
[338220514,1726391344779,-298.47922774,0.00026989,2]
[338220515,1726391344813,-500.0,0.00026989,2]
[338220516,1726391344841,-500.0,0.00026989,2]
[338220517,1726391344870,-500.0,0.00026989,2]
[338220518,1726391344903,-151.0,0.0002699,7]
[338220519,1726391344933,-39693.6309212,0.0002699,4]
[338220520,1726391344963,-257152.574405,0.0002699,4]
[338220521,1726391344991,-151.0,0.0002699,7]
[338220522,1726391345028,-28555.40432614,0.00027,5]
[338220523,1726391392859,183.79302,0.00024531,2]
[338220532,1726391411340,199.34499692,0.00011991,2]
[338220533,1726391413264,156.0,0.00023,2]
[338220534,1726391413615,90.95402958,0.00024164,2]
[338220679,1726391438507,-0.14824784,0.00024164,2]
[338220823,1726391439830,-64.89772258,0.00024164,2]
[338220825,1726391439839,-6072.37310282,0.00026719,2]
[338220827,1726391439849,-2378.07859628,0.00026799,2]
[338220829,1726391439858,-300.0,0.00026899,2]
[338220831,1726391439867,-300.0,0.00026899,2]
[338220833,1726391439876,-574.53444298,0.000269,2]
[338220835,1726391439886,-55430.11613534,0.00027,5]
[338220839,1726391439897,-62268.34565123,0.00027,5]
[338221149,1726391442941,-48898.2872366,0.00027,5]
[338221459,1726391445918,-284.61,0.00027,5]
[338224835,1726392131548,-150.0,0.000219,2]
[338224836,1726392131572,-3000.0,0.00024641,2]
[338224837,1726392131595,-1778.93,0.00025,2]
[338224838,1726392131619,-250.0,0.00025325,2]
[338224839,1726392131644,-250.0,0.00025395,2]
[338224840,1726392131669,-250.0,0.00025464,2]
[338224841,1726392131693,-250.0,0.00025533,2]
[338224842,1726392131717,-250.0,0.00025603,2]
[338224843,1726392131743,-502.71763759,0.00025642,2]
[338224844,1726392131766,-250.0,0.00025672,2]
[338224845,1726392131795,-300.0,0.00025713,2]
[338224846,1726392131819,-24900.0,0.00025714,2]
[338224847,1726392131842,-250.0,0.00025742,2]
[338224848,1726392131866,-250.0,0.00025811,2]
[338224849,1726392131889,-250.0,0.00025881,2]
[338224850,1726392131912,-250.0,0.0002595,2]
[338224851,1726392131936,-250.0,0.0002602,2]
[338224852,1726392131959,-250.0,0.00026089,2]
[338224853,1726392131983,-250.0,0.00026159,2]
[338224854,1726392132007,-250.0,0.00026228,2]
[338224855,1726392132030,-502.71763759,0.00026231,2]
[338224856,1726392132054,-250.0,0.00026297,2]
[338224857,1726392132078,-250.0,0.00026367,2]
[338224858,1726392132102,-250.0,0.00026436,2]
[338224859,1726392132126,-250.0,0.00026506,2]
[338224860,1726392132150,-250.0,0.00026575,2]
[338224861,1726392132173,-250.0,0.00026645,2]
[338224862,1726392132196,-6072.37310282,0.00026719,2]
[338224863,1726392132219,-502.71763759,0.00026819,2]
[338224864,1726392132242,-1604.02052099,0.00026988,2]